fUST/lending_fUST_20250215
["ID","MTS","AMOUNT","RATE_DAILY","PERIOD"]
[353125796,1739585432921,-355.0331824,0.00010841,2]
[353125797,1739585432931,-355.0331824,0.00010841,2]
[353125798,1739585432941,-355.0331824,0.00010841,2]
[353125799,1739585432950,-355.0331824,0.00010841,2]
[353125800,1739585432960,-355.0331824,0.00010841,2]
[353125801,1739585432970,-293.07,0.00010959,2]
[353125802,1739585432980,-420.0,0.00010999,2]
[353125803,1739585432990,-150.104,0.00011083,2]
[353125804,1739585433000,-248.318,0.00011083,2]
[353125805,1739585433009,-253.333,0.00011083,2]
[353125806,1739585433019,-279.55,0.00011083,2]
[353125807,1739585433029,-150.0,0.00011083,2]
[353125808,1739585433039,-355.0331824,0.000111,2]
[353125809,1739585433050,-355.0331824,0.000111,2]
[353125810,1739585433061,-355.0331824,0.000111,2]
[353125811,1739585433072,-466.05227611,0.00011277,2]
[353125812,1739585433082,-187.9623164,0.00011375,2]
[353125813,1739585433092,-3000.0,0.0001139,2]
[353125814,1739585433102,-497.8182721,0.000114,2]
[353125815,1739585433112,-500.0,0.00011473,2]
[353125816,1739585433122,-500.0,0.00011473,2]
[353125819,1739585433248,-500.0,0.00011473,2]
[353125820,1739585433260,-484.8171265,0.00011473,2]
[353125821,1739585433270,-577.86744066,0.00011473,2]
[353125822,1739585433280,-500.0,0.00011473,2]
[353125824,1739585433290,-500.0,0.00011473,2]
[353125826,1739585433300,-500.0,0.00011473,2]
[353125828,1739585433310,-322.33969229,0.00011489,2]
[353126500,1739585447353,4649.78973345,0.00018,120]
[353126521,1739585827822,3989.0,0.00018,30]
[353126522,1739585837142,872.02985923,8.845e-05,2]
[353126523,1739586005433,5000.0,8.845e-05,2]
[353126524,1739586086936,15505.33382603,0.00018,30]
[353126547,1739586631884,-300.0,9.089e-05,2]
[353126548,1739586631895,-502.16699528,9.089e-05,2]
[353126549,1739586631905,-500.0,9.089e-05,2]
[353126550,1739586631914,-501.46940069,9.089e-05,2]
[353126551,1739586631924,-502.66818439,9.089e-05,2]
[353126552,1739586631934,-500.35199362,9.089e-05,2]
[353126553,1739586631943,-500.0,9.089e-05,2]
[353126554,1739586631953,-82.16970595,9.089e-05,2]
[353126567,1739586637703,-417.83029405,9.089e-05,2]
[353126568,1739586637713,-500.0,9.089e-05,2]
[353126569,1739586637723,-500.0,9.089e-05,2]
[353126570,1739586637733,-295.00080377,9.09e-05,2]
[353126571,1739586637745,-876.9399101,9.09e-05,2]
[353127046,1739586855980,577.76520322,8.845e-05,2]
[353127047,1739586863182,50000.0,0.00019,120]
[353127049,1739586947244,250.0,8.089e-05,2]
[353127051,1739586975812,8092.59060924,8.067e-05,2]
[353127052,1739586975859,16807.40939076,8.067e-05,2]
[353127056,1739587272404,420.06752901,0.00018,30]
[353127885,1739587840147,-964.87844525,8.889e-05,2]
[353127887,1739587840157,-197.49719213,8.989e-05,2]
[353127889,1739587840166,-300.0,8.996e-05,2]
[353127891,1739587840176,-6333.55,8.997e-05,2]
[353127893,1739587840185,-5408.77,8.997e-05,2]
[353127895,1739587840195,-2063.55,8.997e-05,2]
[353127897,1739587840204,-1579.84,8.997e-05,2]
[353127899,1739587840213,-500.0,8.997e-05,2]
[353127901,1739587840222,-500.0,8.997e-05,2]
[353127903,1739587840232,-500.0,8.998e-05,2]
[353127905,1739587840241,-500.0,8.998e-05,2]
[353127906,1739587840251,-500.0,8.998e-05,2]
[353127909,1739587840262,-500.0,8.998e-05,2]
[353127911,1739587840272,-500.0,8.998e-05,2]
[353127913,1739587840283,-500.0,8.998e-05,2]
[353127915,1739587840293,-500.0,8.998e-05,2]
[353127917,1739587840302,-500.0,8.998e-05,2]
[353127919,1739587840312,-500.0,8.998e-05,2]
[353127921,1739587840322,-500.0,8.998e-05,2]
[353127923,1739587840331,-500.0,8.998e-05,2]
[353127925,1739587840341,-306.79766788,8.998e-05,2]
[353127927,1739587840350,-500.0,8.998e-05,2]
[353127929,1739587840360,-500.0,8.998e-05,2]
[353127930,1739587840369,-3941.18,8.998e-05,2]
[353127932,1739587840378,-373.9033288,8.998e-05,2]
[353127934,1739587840388,-503.53785597,8.998e-05,2]
[353127936,1739587840397,-534.87819669,8.998e-05,2]
[353127938,1739587840407,-501.15507045,8.998e-05,2]
[353127940,1739587840417,-500.0,8.998e-05,2]
[353127942,1739587840426,-441.56056217,8.998e-05,2]
[353127944,1739587840435,-500.0,8.998e-05,2]
[353127946,1739587840446,-500.0,8.998e-05,2]
[353127948,1739587840455,-500.0,8.998e-05,2]
[353127950,1739587840465,-6994.2,8.998e-05,2]
[353127952,1739587840475,-500.0,8.998e-05,2]
[353127954,1739587840485,-1023.55,8.998e-05,2]
[353127956,1739587840498,-501.67861103,8.998e-05,2]
[353127958,1739587840507,-502.30292815,8.998e-05,2]
[353127960,1739587840517,-555.93,8.998e-05,2]
[353127962,1739587840527,-500.0,8.998e-05,2]
[353127964,1739587840539,-500.0,8.998e-05,2]
[353127966,1739587840548,-500.0,8.998e-05,2]
[353127968,1739587840558,-1058.86,8.998e-05,2]
[353127970,1739587840568,-500.0,8.998e-05,2]
[353127972,1739587840578,-501.39048293,8.998e-05,2]
[353127974,1739587840587,-644.27,8.998e-05,2]
[353127976,1739587840597,-500.0,8.998e-05,2]
[353127978,1739587840607,-500.0,8.998e-05,2]
[353127980,1739587840619,-500.0,8.998e-05,2]
[353127982,1739587840629,-543.89,8.998e-05,2]
[353127984,1739587840639,-500.0,8.998e-05,2]
[353127986,1739587840648,-828.32,8.998e-05,2]
[353127988,1739587840658,-1297.0,8.998e-05,2]
[353127990,1739587840668,-500.0,8.998e-05,2]
[353127991,1739587840677,-500.0,8.998e-05,2]
[353127993,1739587840687,-3193.82415266,8.998e-05,2]
[353127996,1739587840700,-3536.92584734,8.998e-05,2]
[353127998,1739587840710,-509.9437277,8.998e-05,2]
[353128000,1739587840720,-500.0,8.998e-05,2]
[353128002,1739587840729,-3984.24,8.998e-05,2]
[353128004,1739587840739,-500.0,8.998e-05,2]
[353128006,1739587840749,-10580.69042496,8.998e-05,2]
[353128621,1739587846101,-375.33110254,8.997e-05,2]
[353128627,1739587846153,-124.66889746,8.997e-05,2]
[353128629,1739587846163,-3776.96,8.997e-05,2]
[353128631,1739587846173,-3773.55595501,8.998e-05,2]
[353128633,1739587846185,-4406.72362003,8.998e-05,2]
[353128635,1739587846195,-500.0,8.998e-05,2]
[353128637,1739587846204,-1085.6,8.998e-05,2]
[353128639,1739587846214,-3078.6,8.998e-05,2]
[353128641,1739587846224,-501.07951999,8.998e-05,2]
[353128643,1739587846234,-500.0,8.998e-05,2]
[353128645,1739587846243,-500.0,8.998e-05,2]
[353128647,1739587846253,-500.0,8.998e-05,2]
[353128649,1739587846263,-791.93,8.998e-05,2]
[353128651,1739587846272,-830.53,8.998e-05,2]
[353128653,1739587846282,-500.0,8.998e-05,2]
[353128655,1739587846292,-500.0,8.998e-05,2]
[353128657,1739587846301,-641.88171627,8.998e-05,2]
[353128659,1739587846311,-1169.1,8.998e-05,2]
[353128661,1739587846320,-500.0,8.998e-05,2]
[353128663,1739587846330,-500.0,8.998e-05,2]
[353128665,1739587846340,-496.35219269,8.998e-05,2]
[353128667,1739587846349,-500.0,8.998e-05,2]
[353128669,1739587846359,-500.0,8.998e-05,2]
[353128671,1739587846368,-2013.58,8.998e-05,2]
[353128673,1739587846378,-500.0,8.998e-05,2]
[353128675,1739587846387,-500.0,8.998e-05,2]
[353128677,1739587846397,-500.0,8.998e-05,2]
[353128678,1739587846406,-500.0,8.998e-05,2]
[353128680,1739587846416,-500.0,8.998e-05,2]
[353128682,1739587846426,-4162.69,8.998e-05,2]
[353128684,1739587846435,-500.0,8.998e-05,2]
[353128686,1739587846445,-500.0,8.998e-05,2]
[353128688,1739587846454,-4039.58,8.998e-05,2]
[353128690,1739587846464,-500.0,8.998e-05,2]
[353128692,1739587846474,-5926.43,8.998e-05,2]
[353128694,1739587846483,-1951.92,8.998e-05,2]
[353128696,1739587846492,-505.15708414,8.998e-05,2]
[353128698,1739587846502,-500.0,8.998e-05,2]
[353128700,1739587846512,-10638.11,8.998e-05,2]
[353128702,1739587846522,-500.0,8.999e-05,2]
[353128704,1739587846535,-500.0,8.999e-05,2]
[353128706,1739587846545,-1679.55,8.999e-05,2]
[353128708,1739587846555,-500.0,8.999e-05,2]
[353128710,1739587846564,-45.37483122,8.999e-05,2]
[353128712,1739587846578,-454.62516878,8.999e-05,2]
[353128714,1739587846587,-1486.6,8.999e-05,2]
[353128716,1739587846596,-500.0,8.999e-05,2]
[353128718,1739587846607,-500.0,8.999e-05,2]
[353128720,1739587846620,-1377.78,8.999e-05,2]
[353128722,1739587846629,-2608.28,8.999e-05,2]
[353128724,1739587846639,-500.0,8.999e-05,2]
[353128726,1739587846648,-2243.98,8.999e-05,2]
[353128728,1739587846658,-500.0,8.999e-05,2]
[353128730,1739587846668,-997.32,8.999e-05,2]
[353128732,1739587846677,-449.64892661,8.999e-05,2]
[353128734,1739587846687,-687.87,8.999e-05,2]
[353128736,1739587846696,-500.0,8.999e-05,2]
[353128738,1739587846706,-500.0,8.999e-05,2]
[353128740,1739587846715,-500.0,8.999e-05,2]
[353128742,1739587846725,-500.0,8.999e-05,2]
[353128744,1739587846734,-1420.18,8.999e-05,2]
[353128746,1739587846745,-500.0,8.999e-05,2]
[353128748,1739587846754,-2055.62,8.999e-05,2]
[353128750,1739587846764,-713.86,8.999e-05,2]
[353128751,1739587846773,-500.0,8.999e-05,2]
[353128752,1739587846782,-1547.98,8.999e-05,2]
[353128753,1739587846792,-194.84084991,8.999e-05,2]
[353128754,1739587846801,-1087.66203423,8.999e-05,2]
[353128770,1739587904037,161.3324307,8.055e-05,2]
[353128771,1739588000809,3000.0,0.000178,30]
[353128772,1739588001276,3000.0,0.0001781,30]
[353128773,1739588002015,3000.0,0.0001782,30]
[353128774,1739588002948,3000.0,0.0001783,30]
[353128775,1739588003762,3000.0,0.0001784,30]
[353128776,1739588004482,3000.0,0.0001785,30]
[353128777,1739588005215,3000.0,0.0001786,30]
[353128778,1739588005668,3000.0,0.0001787,30]
[353128779,1739588006448,3000.0,0.0001788,30]
[353128780,1739588006863,3000.0,0.0001789,30]
[353128781,1739588007296,3000.0,0.000179,30]
[353128782,1739588007788,3000.0,0.0001791,30]
[353128783,1739588008383,4593.247494,0.0001792,30]
[353128784,1739588048924,3031.25817854,8.035e-05,2]
[353128785,1739588048954,21868.74182146,8.035e-05,2]
[353128786,1739588196011,306.84307309,0.000179,30]
[353128788,1739588987187,51000.0,0.00019,120]
[353129421,1739589038227,-300.0,8.994e-05,2]
[353129423,1739589038237,-500.0,8.994e-05,2]
[353129425,1739589038247,-3619.59,8.995e-05,2]
[353129427,1739589038256,-899.15,8.995e-05,2]
[353129429,1739589038267,-399.31797934,8.995e-05,2]
[353129431,1739589038279,-100.68202066,8.995e-05,2]
[353129433,1739589038289,-549.65,8.995e-05,2]
[353129435,1739589038299,-1242.96,8.995e-05,2]
[353129437,1739589038308,-617.43,8.995e-05,2]
[353129439,1739589038317,-793.81,8.995e-05,2]
[353129442,1739589038327,-6021.87873793,8.995e-05,2]
[353129577,1739589040342,-5645.4,8.995e-05,2]
[353129578,1739589040390,-3232.05449018,8.995e-05,2]
[353129687,1739589042178,1165.21029347,8.845e-05,2]
[353129740,1739589303947,277.39298444,0.00018,30]
[353129742,1739589379234,24900.0,7.995e-05,2]
[353129743,1739589798759,10000.0,0.00018,30]
[353129744,1739589829557,10000.0,0.00019,120]
[353129757,1739590084138,687.0,0.00018,30]
[353129790,1739590232295,-197.49719213,8.894e-05,2]
[353129791,1739590232305,-300.0,8.972e-05,2]
[353129792,1739590232316,-500.0,8.973e-05,2]
[353129793,1739590232326,-500.0,8.973e-05,2]
[353129794,1739590232335,-163.8654196,8.973e-05,2]
[353129795,1739590232345,-162.05797593,8.973e-05,2]
[353129796,1739590232355,-500.0,8.973e-05,2]
[353129797,1739590232365,-501.76726268,8.973e-05,2]
[353129817,1739590232537,-500.0,8.973e-05,2]
[353129819,1739590232548,-500.0,8.973e-05,2]
[353129821,1739590232558,-235.57027522,8.973e-05,2]
[353129823,1739590232567,-500.75463657,8.973e-05,2]
[353129825,1739590232576,-2538.50888383,8.99e-05,2]
[353129828,1739590232589,-4797.86111617,8.99e-05,2]
[353129830,1739590232599,-5183.4,8.99e-05,2]
[353129833,1739590232608,-1514.02,8.99e-05,2]
[353129836,1739590232618,-1977.57,8.99e-05,2]
[353129838,1739590232627,-500.0,8.99e-05,2]
[353129840,1739590232637,-500.0,8.991e-05,2]
[353129842,1739590232646,-3468.77,8.991e-05,2]
[353129844,1739590232655,-500.0,8.991e-05,2]
[353129846,1739590232665,-500.0,8.991e-05,2]
[353129848,1739590232674,-943.44,8.991e-05,2]
[353129850,1739590232683,-9034.19,8.991e-05,2]
[353129852,1739590232693,-991.84,8.991e-05,2]
[353129854,1739590232702,-591.7,8.991e-05,2]
[353129856,1739590232711,-943.0,8.991e-05,2]
[353129858,1739590232721,-760.73,8.991e-05,2]
[353129860,1739590232730,-500.0,8.991e-05,2]
[353129863,1739590232740,-6450.3,8.991e-05,2]
[353129865,1739590232749,-12107.4393337,8.991e-05,2]
[353131122,1739590246310,-300.0,8.99e-05,2]
[353131123,1739590246323,-200.0,8.99e-05,2]
[353131124,1739590246333,-500.0,8.99e-05,2]
[353131125,1739590246342,-500.0,8.99e-05,2]
[353131126,1739590246354,-500.0,8.99e-05,2]
[353131127,1739590246363,-500.0,8.99e-05,2]
[353131128,1739590246374,-5251.0206663,8.991e-05,2]
[353131129,1739590246383,-3818.23,8.991e-05,2]
[353131130,1739590246393,-500.0,8.991e-05,2]
[353131131,1739590246403,-758.93,8.991e-05,2]
[353131132,1739590246413,-500.0,8.991e-05,2]
[353131133,1739590246422,-1120.39,8.991e-05,2]
[353131134,1739590246432,-7970.43,8.991e-05,2]
[353131135,1739590246443,-500.0,8.991e-05,2]
[353131136,1739590246452,-500.0,8.991e-05,2]
[353131137,1739590246463,-500.0,8.991e-05,2]
[353131138,1739590246473,-3989.25,8.991e-05,2]
[353131139,1739590246482,-1870.59,8.991e-05,2]
[353131140,1739590246492,-3871.26,8.991e-05,2]
[353131141,1739590246501,-500.0,8.991e-05,2]
[353131142,1739590246511,-5679.49,8.991e-05,2]
[353131143,1739590246521,-500.0,8.991e-05,2]
[353131144,1739590246531,-500.0,8.992e-05,2]
[353131145,1739590246540,-500.0,8.992e-05,2]
[353131146,1739590246550,-1609.57,8.992e-05,2]
[353131147,1739590246560,-500.0,8.992e-05,2]
[353131148,1739590246569,-1320.37,8.992e-05,2]
[353131149,1739590246578,-500.0,8.992e-05,2]
[353131150,1739590246588,-1424.66,8.992e-05,2]
[353131151,1739590246597,-2499.6,8.992e-05,2]
[353131152,1739590246608,-500.0,8.992e-05,2]
[353131153,1739590246617,-500.0,8.992e-05,2]
[353131154,1739590246627,-500.0,8.992e-05,2]
[353131155,1739590246636,-2150.48,8.992e-05,2]
[353131156,1739590246646,-1288.21,8.992e-05,2]
[353131157,1739590246655,-500.0,8.992e-05,2]
[353131158,1739590246665,-659.21,8.992e-05,2]
[353131159,1739590246675,-500.0,8.992e-05,2]
[353131160,1739590246685,-500.0,8.992e-05,2]
[353131161,1739590246695,-507.35259874,8.992e-05,2]
[353131162,1739590246705,-500.0,8.992e-05,2]
[353131163,1739590246714,-1361.0,8.992e-05,2]
[353131164,1739590246724,-500.0,8.992e-05,2]
[353131165,1739590246734,-1969.97,8.992e-05,2]
[353131166,1739590246744,-684.12,8.992e-05,2]
[353131167,1739590246754,-500.0,8.992e-05,2]
[353131168,1739590246764,-1483.48,8.992e-05,2]
[353131169,1739590246774,-500.0,8.992e-05,2]
[353131170,1739590246784,-1384.23,8.992e-05,2]
[353131171,1739590246793,-500.0,8.992e-05,2]
[353131172,1739590246803,-611.29,8.992e-05,2]
[353131173,1739590246812,-500.0,8.992e-05,2]
[353131174,1739590246823,-573.8,8.992e-05,2]
[353131175,1739590246832,-500.0,8.992e-05,2]
[353131176,1739590246842,-791.05,8.992e-05,2]
[353131177,1739590246851,-1460.06,8.992e-05,2]
[353131178,1739590246861,-500.0,8.992e-05,2]
[353131179,1739590246870,-500.0,8.992e-05,2]
[353131180,1739590246879,-10194.86,8.992e-05,2]
[353131181,1739590246889,-500.0,8.992e-05,2]
[353131182,1739590246899,-2654.08,8.992e-05,2]
[353131183,1739590246908,-518.82077008,8.992e-05,2]
[353131184,1739590246918,-500.0,8.992e-05,2]
[353131185,1739590246928,-593.32,8.992e-05,2]
[353131186,1739590246938,-500.0,8.992e-05,2]
[353131187,1739590246947,-586.79,8.992e-05,2]
[353131188,1739590246959,-503.3,8.992e-05,2]
[353131189,1739590246969,-617.61,8.992e-05,2]
[353131190,1739590246979,-354.22877601,8.992e-05,2]
[353131191,1739590246990,-1236.01,8.992e-05,2]
[353131192,1739590247000,-955.38,8.992e-05,2]
[353131194,1739590247010,-575.4,8.992e-05,2]
[353131196,1739590247021,-507.03585978,8.992e-05,2]
[353131198,1739590247031,-2068.77,8.992e-05,2]
[353131200,1739590247041,-151.0,8.992e-05,2]
[353131202,1739590247052,-1621.75899995,8.992e-05,2]
[353131243,1739590266180,10000.0,0.00018,30]
[353131244,1739590276260,10000.0,0.00019,120]
[353131246,1739590462822,18384.6058461,7.993e-05,2]
[353131247,1739590512320,1456.0,0.00018,30]
[353131248,1739590568986,1401.0,8.845e-05,3]
[353131249,1739590596215,197.49719213,8.809e-05,2]
[353131251,1739590754090,188.4075016,8.054e-05,2]
[353131252,1739590802713,81000.0,0.00018,30]
[353131253,1739590804255,151.0,0.00018,30]
[353131282,1739591432479,-478.3442513,8.909e-05,2]
[353131284,1739591432489,-403.2857947,8.963e-05,2]
[353131290,1739591432535,-97.33694821,8.963e-05,2]
[353131292,1739591432545,-516.67688635,8.963e-05,2]
[353131294,1739591432555,-500.0,8.963e-05,2]
[353131296,1739591432566,-500.0,8.963e-05,2]
[353131298,1739591432576,-500.0,8.963e-05,2]
[353131300,1739591432586,-300.0,8.986e-05,2]
[353131302,1739591432595,-7030.69,8.987e-05,2]
[353131304,1739591432604,-4967.43,8.987e-05,2]
[353131306,1739591432614,-1895.17,8.987e-05,2]
[353131308,1739591432624,-1473.63,8.987e-05,2]
[353131310,1739591432634,-500.0,8.987e-05,2]
[353131312,1739591432643,-500.0,8.987e-05,2]
[353131314,1739591432656,-3324.24,8.987e-05,2]
[353131316,1739591432666,-500.0,8.988e-05,2]
[353131318,1739591432676,-500.0,8.988e-05,2]
[353131320,1739591432685,-500.0,8.988e-05,2]
[353131322,1739591432696,-500.0,8.988e-05,2]
[353131324,1739591432705,-500.0,8.988e-05,2]
[353131326,1739591432715,-500.0,8.988e-05,2]
[353131328,1739591432724,-500.0,8.988e-05,2]
[353131330,1739591432735,-500.0,8.988e-05,2]
[353131333,1739591432744,-500.0,8.988e-05,2]
[353131336,1739591432755,-500.0,8.988e-05,2]
[353131339,1739591432764,-500.0,8.988e-05,2]
[353131342,1739591432774,-500.0,8.988e-05,2]
[353131345,1739591432784,-500.0,8.988e-05,2]
[353131348,1739591432793,-500.0,8.988e-05,2]
[353131351,1739591432802,-500.0,8.988e-05,2]
[353131353,1739591432812,-500.0,8.988e-05,2]
[353131355,1739591432821,-500.0,8.988e-05,2]
[353131357,1739591432831,-8657.76,8.988e-05,2]
[353131360,1739591432841,-904.13,8.988e-05,2]
[353131363,1739591432850,-532.77,8.988e-05,2]
[353131366,1739591432859,-500.0,8.988e-05,2]
[353131369,1739591432869,-500.0,8.988e-05,2]
[353131372,1739591432879,-950.51,8.988e-05,2]
[353131375,1739591432889,-500.0,8.988e-05,2]
[353131378,1739591432898,-500.0,8.988e-05,2]
[353131381,1739591432908,-500.0,8.988e-05,2]
[353131384,1739591432917,-567.05,8.988e-05,2]
[353131388,1739591432928,-500.0,8.988e-05,2]
[353131391,1739591432937,-500.0,8.988e-05,2]
[353131394,1739591432947,-521.22,8.988e-05,2]
[353131397,1739591432957,-500.0,8.988e-05,2]
[353131400,1739591432966,-1151.88,8.988e-05,2]
[353131402,1739591432975,-729.03,8.988e-05,2]
[353131404,1739591432985,-500.0,8.988e-05,2]
[353131406,1739591432994,-6134.60332,8.988e-05,2]
[353131919,1739591438329,-313.3675855,8.987e-05,2]
[353131921,1739591438339,-46.93668,8.988e-05,2]
[353131923,1739591438349,-500.0,8.988e-05,2]
[353131925,1739591438359,-275.83184728,8.988e-05,2]
[353131927,1739591438369,-3711.88,8.988e-05,2]
[353131929,1739591438382,-4017.5669639,8.988e-05,2]
[353131932,1739591438395,-12784.0230361,8.988e-05,2]
[353131933,1739591438404,-500.0,8.988e-05,2]
[353131935,1739591438415,-216.54048158,8.988e-05,2]
[353131937,1739591438424,-500.0,8.988e-05,2]
[353131939,1739591438434,-2991.47,8.988e-05,2]
[353131941,1739591438444,-379.5129141,8.988e-05,2]
[353131943,1739591438453,-500.0,8.988e-05,2]
[353131945,1739591438463,-1040.37,8.988e-05,2]
[353131947,1739591438472,-727.31,8.988e-05,2]
[353131949,1739591438482,-500.0,8.988e-05,2]
[353131951,1739591438492,-500.0,8.988e-05,2]
[353131953,1739591438501,-795.93,8.988e-05,2]
[353131955,1739591438511,-1094.54,8.988e-05,2]
[353131957,1739591438521,-500.0,8.988e-05,2]
[353131959,1739591438530,-500.0,8.988e-05,2]
[353131961,1739591438540,-500.0,8.988e-05,2]
[353131962,1739591438549,-500.0,8.988e-05,2]
[353131964,1739591438559,-500.0,8.988e-05,2]
[353131966,1739591438568,-501.38521472,8.988e-05,2]
[353131968,1739591438578,-7770.37,8.988e-05,2]
[353131970,1739591438587,-501.89392152,8.988e-05,2]
[353131972,1739591438597,-500.0,8.988e-05,2]
[353131974,1739591438607,-503.26656702,8.988e-05,2]
[353131976,1739591438616,-500.0,8.988e-05,2]
[353131978,1739591438626,-3838.09,8.988e-05,2]
[353131980,1739591438636,-500.0,8.988e-05,2]
[353131982,1739591438645,-500.0,8.988e-05,2]
[353131984,1739591438655,-3709.96,8.988e-05,2]
[353131985,1739591438667,-519.85772817,8.988e-05,2]
[353131987,1739591438677,-5442.85,8.988e-05,2]
[353131989,1739591438687,-1792.65,8.988e-05,2]
[353131991,1739591438696,-500.0,8.988e-05,2]
[353131993,1739591438707,-193.1674669,8.988e-05,2]
[353131995,1739591438716,-500.0,8.988e-05,2]
[353131997,1739591438726,-500.0,8.988e-05,2]
[353131999,1739591438736,-500.0,8.988e-05,2]
[353132000,1739591438747,-388.26871952,8.988e-05,2]
[353132001,1739591438756,-500.0,8.988e-05,2]
[353132002,1739591438766,-500.0,8.988e-05,2]
[353132003,1739591438776,-500.0,8.988e-05,2]
[353132004,1739591438785,-500.0,8.988e-05,2]
[353132005,1739591438795,-502.60293462,8.988e-05,2]
[353132006,1739591438805,-500.0,8.988e-05,2]
[353132007,1739591438814,-500.0,8.988e-05,2]
[353132008,1739591438824,-500.0,8.988e-05,2]
[353132009,1739591438834,-500.0,8.988e-05,2]
[353132010,1739591438844,-371.65183608,8.988e-05,2]
[353132011,1739591438854,-500.0,8.988e-05,2]
[353132013,1739591438864,-333.5277449,8.988e-05,2]
[353132030,1739591439018,-500.0,8.988e-05,2]
[353132032,1739591439029,-500.0,8.988e-05,2]
[353132034,1739591439039,-500.0,8.988e-05,2]
[353132036,1739591439048,-500.0,8.988e-05,2]
[353132038,1739591439057,-500.0,8.988e-05,2]
[353132040,1739591439067,-500.0,8.988e-05,2]
[353132042,1739591439076,-500.0,8.988e-05,2]
[353132044,1739591439086,-500.0,8.988e-05,2]
[353132046,1739591439095,-500.0,8.988e-05,2]
[353132048,1739591439106,-500.0,8.988e-05,2]
[353132050,1739591439117,-500.0,8.988e-05,2]
[353132052,1739591439128,-500.0,8.988e-05,2]
[353132054,1739591439137,-500.0,8.988e-05,2]
[353132056,1739591439146,-500.0,8.988e-05,2]
[353132058,1739591439156,-500.0,8.988e-05,2]
[353132060,1739591439166,-500.0,8.988e-05,2]
[353132062,1739591439175,-500.0,8.988e-05,2]
[353132064,1739591439186,-500.0,8.988e-05,2]
[353132066,1739591439196,-500.0,8.988e-05,2]
[353132068,1739591439206,-129.2911531,8.988e-05,2]
[353132747,1739591446543,-500.0,8.987e-05,2]
[353132749,1739591446553,-500.0,8.987e-05,2]
[353132751,1739591446562,-370.7088469,8.988e-05,2]
[353132754,1739591446572,-9770.07,8.988e-05,2]
[353132756,1739591446581,-500.0,8.988e-05,2]
[353132758,1739591446591,-500.0,8.988e-05,2]
[353132760,1739591446600,-500.0,8.989e-05,2]
[353132762,1739591446610,-500.0,8.989e-05,2]
[353132764,1739591446619,-1542.51,8.989e-05,2]
[353132766,1739591446629,-500.0,8.989e-05,2]
[353132768,1739591446639,-500.0,8.989e-05,2]
[353132770,1739591446648,-1365.29,8.989e-05,2]
[353132772,1739591446659,-1265.36,8.989e-05,2]
[353132774,1739591446672,-500.0,8.989e-05,2]
[353132776,1739591446682,-500.0,8.989e-05,2]
[353132778,1739591446691,-2395.45,8.989e-05,2]
[353132780,1739591446701,-500.0,8.989e-05,2]
[353132782,1739591446712,-500.0,8.989e-05,2]
[353132784,1739591446721,-1234.53,8.989e-05,2]
[353132786,1739591446731,-500.0,8.989e-05,2]
[353132788,1739591446742,-631.74,8.989e-05,2]
[353132790,1739591446751,-500.0,8.989e-05,2]
[353132792,1739591446761,-500.0,8.989e-05,2]
[353132794,1739591446773,-500.0,8.989e-05,2]
[353132796,1739591446783,-1304.29,8.989e-05,2]
[353132798,1739591446793,-500.0,8.989e-05,2]
[353132800,1739591446802,-1887.89,8.989e-05,2]
[353132802,1739591446812,-556.50555583,8.989e-05,2]
[353133160,1739591594721,150.0,0.000178,30]
[353133161,1739591613389,24900.0,7.99e-05,2]
[353133162,1739591858480,443.6,0.00018,30]
[353133203,1739592633716,-252.76129741,8.905e-05,2]
[353133788,1739592640912,-66.13487009,8.905e-05,2]
[353133789,1739592640922,-500.0,8.963e-05,2]
[353133790,1739592640932,-300.0,8.983e-05,2]
[353133791,1739592640941,-133.86512991,8.984e-05,2]
[353134080,1739592643713,-500.0,8.984e-05,2]
[353134087,1739592643771,-6103.87487009,8.984e-05,2]
[353134089,1739592643781,-1816.21,8.984e-05,2]
[353134091,1739592643790,-4760.45,8.984e-05,2]